[Event "December 5 Early 2023"]
[Site "https://www.chess.com"]
[Date "2023.12.05"]
[Round "1"]
[White "Kononenko, Dmitry"]
[Black "Fernandez Sanchez, Mario Andres"]
[Result "1-0"]
[Board "195"]
[TimeControl "180+1"]
[WhiteFideId "14113538"]
[BlackFideId "6501621"]
[WhiteElo "2582"]
[BlackElo "2238"]
[WhiteTeam "UKR"]
[BlackTeam "CRC"]
[WhiteClock "0:00:50"]
[BlackClock "0:00:09"]

1. e4 {[%clk 0:02:59]}  c5 {[%clk 0:02:59]} 2. Nf3 {[%clk 0:02:59]}  Nc6 {[%clk 0:03:00]} 3. d4 {[%clk 0:02:59]}  cxd4 {[%clk 0:03:01]} 4. Nxd4 {[%clk 0:03:00]}  g6 {[%clk 0:03:01]} 5. Nc3 {[%clk 0:02:59]}  Bg7 {[%clk 0:03:02]} 6. Be3 {[%clk 0:03:00]}  Nf6 {[%clk 0:03:02]} 7. Bc4 {[%clk 0:03:00]}  Qa5 {[%clk 0:03:03]} 8. O-O {[%clk 0:02:59]}  O-O {[%clk 0:03:03]} 9. Bb3 {[%clk 0:02:59]}  d6 {[%clk 0:03:03]} 10. h3 {[%clk 0:02:59]}  Bd7 {[%clk 0:03:04]} 11. f4 {[%clk 0:02:58]}  Nxd4 {[%clk 0:02:56]} 12. Bxd4 {[%clk 0:02:58]}  Bc6 {[%clk 0:02:57]} 13. Qd3 {[%clk 0:02:58]}  b5 {[%clk 0:02:37]} 14. a3 {[%clk 0:02:50]}  a6 {[%clk 0:02:31]} 15. Rae1 {[%clk 0:02:48]}  Qc7 {[%clk 0:02:28]} 16. f5 {[%clk 0:02:38]}  Qb7 {[%clk 0:02:26]} 17. fxg6 {[%clk 0:02:35]}  hxg6 {[%clk 0:02:27]} 18. Bxf6 {[%clk 0:02:23]}  Bxf6 {[%clk 0:02:24]} 19. Rxf6 {[%clk 0:02:23]}  exf6 {[%clk 0:02:24]} 20. Rf1 {[%clk 0:02:19]}  Qe7 {[%clk 0:02:21]} 21. Bd5 {[%clk 0:02:18]}  Rac8 {[%clk 0:02:01]} 22. Bxc6 {[%clk 0:02:18]}  Rxc6 {[%clk 0:02:02]} 23. Nd5 {[%clk 0:02:18]}  Qe5 {[%clk 0:01:58]} 24. Nxf6+ {[%clk 0:02:19]}  Kg7 {[%clk 0:01:58]} 25. c3 {[%clk 0:02:19]}  Rh8 {[%clk 0:01:52]} 26. Qf3 {[%clk 0:02:10]}  Rc7 {[%clk 0:01:41]} 27. Nd5 {[%clk 0:02:07]}  Rb7 {[%clk 0:01:38]} 28. Qg4 {[%clk 0:01:57]}  a5 {[%clk 0:01:21]} 29. Rf5 {[%clk 0:01:56]}  Qe6 {[%clk 0:01:11]} 30. Qg3 {[%clk 0:01:56]}  Qxe4 {[%clk 0:00:56]} 31. Rg5 {[%clk 0:01:56]}  Rd8 {[%clk 0:00:20]} 32. Qf2 {[%clk 0:01:54]}  Qe6 {[%clk 0:00:19]} 33. Qd4+ {[%clk 0:01:48]}  Kg8 {[%clk 0:00:16]} 34. Nf6+ {[%clk 0:01:44]}  Kf8 {[%clk 0:00:17]} 35. Ng4 {[%clk 0:01:41]}  b4 {[%clk 0:00:16]} 36. axb4 {[%clk 0:01:37]}  axb4 {[%clk 0:00:16]} 37. cxb4 {[%clk 0:01:37]}  Rdb8 {[%clk 0:00:15]} 38. Ra5 {[%clk 0:01:05]}  Rxb4 {[%clk 0:00:15]} 39. Qh8+ {[%clk 0:01:03]}  Ke7 {[%clk 0:00:15]} 40. Ra7+ {[%clk 0:01:04]}  R4b7 {[%clk 0:00:16]} 41. Qh4+ {[%clk 0:01:02]}  Kf8 {[%clk 0:00:14]} 42. Qh6+ {[%clk 0:00:55]}  Ke7 {[%clk 0:00:14]} 43. Ra3 {[%clk 0:00:52]}  Rxb2 {[%clk 0:00:14]} 44. Re3 {[%clk 0:00:52]}  Rb1+ {[%clk 0:00:14]} 45. Kh2 {[%clk 0:00:52]}  Ra1 {[%clk 0:00:12]} 46. Rxe6+ {[%clk 0:00:51]}  Kxe6 {[%clk 0:00:12]} 47. Qe3+ {[%clk 0:00:51]}  Kd7 {[%clk 0:00:12]} 48. Nf6+ {[%clk 0:00:50]}  Kd8 {[%clk 0:00:11]} 49. Qe8+ {[%clk 0:00:50]}  Kc7 {[%clk 0:00:12]} 50. Qd7+ {[%clk 0:00:49]}  Kb6 {[%clk 0:00:12]} 51. Qxd6+ {[%clk 0:00:50]}  Ka7 {[%clk 0:00:12]} 52. Qd4+ {[%clk 0:00:50]}  Ka8 {[%clk 0:00:09]} 53. Qxa1+ {[%clk 0:00:50]} 1-0

[Event "December 5 Early 2023"]
[Site "https://www.chess.com"]
[Date "2023.12.05"]
[Round "1"]
[White "Shubenkova, Veronika"]
[Black "Dyulgerov, Volen"]
[Result "1-0"]
[Board "197"]
[TimeControl "180+1"]
[WhiteFideId "44124040"]
[BlackFideId "2918978"]
[WhiteElo "2580"]
[BlackElo "2235"]
[WhiteTeam "RUS"]
[BlackTeam "BUL"]
[WhiteClock "0:01:10"]
[BlackClock "0:00:00"]

1. c4 {[%clk 0:02:59]}  b5 {[%clk 0:02:59]} 2. cxb5 {[%clk 0:02:58]}  a6 {[%clk 0:02:59]} 3. bxa6 {[%clk 0:02:58]}  Rxa6 {[%clk 0:03:00]} 4. d3 {[%clk 0:02:58]}  d5 {[%clk 0:02:54]} 5. Nf3 {[%clk 0:02:58]}  c5 {[%clk 0:02:50]} 6. Nbd2 {[%clk 0:02:58]}  Nc6 {[%clk 0:02:35]} 7. g3 {[%clk 0:02:57]}  h5 {[%clk 0:02:35]} 8. h4 {[%clk 0:02:56]}  Nf6 {[%clk 0:02:35]} 9. Bg2 {[%clk 0:02:56]}  Ng4 {[%clk 0:02:36]} 10. O-O {[%clk 0:02:55]}  e6 {[%clk 0:02:27]} 11. e4 {[%clk 0:02:55]}  Nb4 {[%clk 0:02:20]} 12. Nb3 {[%clk 0:02:47]}  d4 {[%clk 0:01:41]} 13. a3 {[%clk 0:02:36]}  Nc6 {[%clk 0:01:40]} 14. Qc2 {[%clk 0:02:34]}  Qb6 {[%clk 0:01:32]} 15. Nfd2 {[%clk 0:02:21]}  Ra4 {[%clk 0:01:12]} 16. Nc4 {[%clk 0:02:20]}  Rxc4 {[%clk 0:01:12]} 17. dxc4 {[%clk 0:02:18]}  Bd6 {[%clk 0:01:06]} 18. Bf4 {[%clk 0:02:13]}  Bxf4 {[%clk 0:01:04]} 19. gxf4 {[%clk 0:02:13]}  Qd8 {[%clk 0:01:02]} 20. Rfd1 {[%clk 0:01:56]}  Qxh4 {[%clk 0:01:00]} 21. Nxc5 {[%clk 0:01:55]}  Qh2+ {[%clk 0:00:50]} 22. Kf1 {[%clk 0:01:55]}  Qxf4 {[%clk 0:00:51]} 23. Nd3 {[%clk 0:01:49]}  Ne3+ {[%clk 0:00:46]} 24. Kg1 {[%clk 0:01:47]}  Nxc2 {[%clk 0:00:27]} 25. Nxf4 {[%clk 0:01:46]}  Nxa1 {[%clk 0:00:28]} 26. Rxa1 {[%clk 0:01:47]}  g5 {[%clk 0:00:28]} 27. Nd3 {[%clk 0:01:40]}  Na5 {[%clk 0:00:26]} 28. Rc1 {[%clk 0:01:37]}  Ba6 {[%clk 0:00:25]} 29. Nc5 {[%clk 0:01:31]}  Bc8 {[%clk 0:00:04]} 30. e5 {[%clk 0:01:29]}  h4 {[%clk 0:00:02]} 31. b4 {[%clk 0:01:29]}  h3 {[%clk 0:00:03]} 32. Be4 {[%clk 0:01:28]}  h2+ {[%clk 0:00:03]} 33. Kh1 {[%clk 0:01:28]}  f5 {[%clk 0:00:03]} 34. exf6 {[%clk 0:01:28]}  Nxc4 {[%clk 0:00:02]} 35. Rxc4 {[%clk 0:01:27]}  e5 {[%clk 0:00:02]} 36. Rc1 {[%clk 0:01:24]}  Kf7 {[%clk 0:00:02]} 37. Nd3 {[%clk 0:01:23]}  Kxf6 {[%clk 0:00:01]} 38. f3 {[%clk 0:01:22]}  g4 {[%clk 0:00:01]} 39. fxg4 {[%clk 0:01:21]}  Kg5 {[%clk 0:00:02]} 40. Rc2 {[%clk 0:01:16]}  Bxg4 {[%clk 0:00:01]} 41. Rxh2 {[%clk 0:01:16]}  Ra8 {[%clk 0:00:01]} 42. Ra2 {[%clk 0:01:16]}  Rc8 {[%clk 0:00:01]} 43. Nc5 {[%clk 0:01:15]}  Rf8 {[%clk 0:00:01]} 44. a4 {[%clk 0:01:15]}  Kf4 {[%clk 0:00:01]} 45. Rf2+ {[%clk 0:01:14]}  Kg3 {[%clk 0:00:01]} 46. Rxf8 {[%clk 0:01:13]}  d3 {[%clk 0:00:02]} 47. Nxd3 {[%clk 0:01:12]}  Kh3 {[%clk 0:00:01]} 48. Nf2+ {[%clk 0:01:10]}  Kg3 {[%clk 0:00:01]} 49. Nxg4 {[%clk 0:01:11]}  Kh3 {[%clk 0:00:00]} 50. Nf2+ {[%clk 0:01:10]} 1-0

[Event "December 5 Early 2023"]
[Site "https://www.chess.com"]
[Date "2023.12.05"]
[Round "1"]
[White "Garcia Correa, Jose Ricardo"]
[Black "Mendez Fortes, Eduardo Jesus"]
[Result "1/2-1/2"]
[Board "198"]
[TimeControl "180+1"]
[WhiteFideId "5101832"]
[BlackFideId "3502376"]
[WhiteElo "2234"]
[BlackElo "2579"]
[WhiteTeam "MEX"]
[BlackTeam "CUB"]
[WhiteClock "0:00:19"]
[BlackClock "0:00:16"]

1. e4 {[%clk 0:02:59]}  c5 {[%clk 0:02:57]} 2. Nf3 {[%clk 0:02:59]}  d6 {[%clk 0:02:57]} 3. d4 {[%clk 0:03:00]}  cxd4 {[%clk 0:02:58]} 4. Nxd4 {[%clk 0:03:00]}  Nf6 {[%clk 0:02:58]} 5. Nc3 {[%clk 0:03:01]}  a6 {[%clk 0:02:58]} 6. f4 {[%clk 0:03:01]}  e5 {[%clk 0:02:58]} 7. Nf3 {[%clk 0:03:01]}  Nbd7 {[%clk 0:02:57]} 8. Bd3 {[%clk 0:03:02]}  Be7 {[%clk 0:02:57]} 9. O-O {[%clk 0:03:03]}  O-O {[%clk 0:02:57]} 10. Kh1 {[%clk 0:03:03]}  b5 {[%clk 0:02:57]} 11. a3 {[%clk 0:03:02]}  Bb7 {[%clk 0:02:57]} 12. Qe1 {[%clk 0:03:03]}  Rc8 {[%clk 0:02:56]} 13. fxe5 {[%clk 0:02:50]}  dxe5 {[%clk 0:02:44]} 14. Bg5 {[%clk 0:02:44]}  h6 {[%clk 0:02:40]} 15. Bh4 {[%clk 0:02:42]}  Nh5 {[%clk 0:02:37]} 16. Rd1 {[%clk 0:02:36]}  Bxh4 {[%clk 0:02:26]} 17. Nxh4 {[%clk 0:02:35]}  Nf4 {[%clk 0:02:25]} 18. Nf5 {[%clk 0:02:32]}  Qf6 {[%clk 0:01:49]} 19. Bxb5 {[%clk 0:02:18]}  Nc5 {[%clk 0:01:32]} 20. Bd3 {[%clk 0:02:10]}  Qg5 {[%clk 0:01:28]} 21. Qg3 {[%clk 0:02:01]}  Rcd8 {[%clk 0:01:28]} 22. Qxg5 {[%clk 0:01:48]}  hxg5 {[%clk 0:01:29]} 23. Bc4 {[%clk 0:01:45]}  Rxd1 {[%clk 0:01:23]} 24. Rxd1 {[%clk 0:01:42]}  Nxe4 {[%clk 0:01:24]} 25. Rd7 {[%clk 0:01:28]}  Ba8 {[%clk 0:01:14]} 26. Nxe4 {[%clk 0:01:19]}  Bxe4 {[%clk 0:01:13]} 27. Ne3 {[%clk 0:01:19]}  g6 {[%clk 0:01:03]} 28. Kg1 {[%clk 0:01:17]}  Kg7 {[%clk 0:01:00]} 29. g3 {[%clk 0:01:17]}  Nh5 {[%clk 0:00:54]} 30. Bxa6 {[%clk 0:01:11]}  Kh6 {[%clk 0:00:50]} 31. Bc4 {[%clk 0:01:09]}  f5 {[%clk 0:00:49]} 32. Bd5 {[%clk 0:01:09]}  Bxd5 {[%clk 0:00:46]} 33. Nxd5 {[%clk 0:01:08]}  g4 {[%clk 0:00:41]} 34. Ne3 {[%clk 0:01:03]}  Kg5 {[%clk 0:00:40]} 35. Nc4 {[%clk 0:01:02]}  e4 {[%clk 0:00:39]} 36. Kf2 {[%clk 0:01:00]}  Nf6 {[%clk 0:00:39]} 37. Rd6 {[%clk 0:00:52]}  Rc8 {[%clk 0:00:31]} 38. b3 {[%clk 0:00:51]}  Rh8 {[%clk 0:00:30]} 39. Kg2 {[%clk 0:00:49]}  Rc8 {[%clk 0:00:29]} 40. a4 {[%clk 0:00:48]}  Rc5 {[%clk 0:00:29]} 41. a5 {[%clk 0:00:47]}  Rc7 {[%clk 0:00:24]} 42. a6 {[%clk 0:00:47]}  Ra7 {[%clk 0:00:23]} 43. b4 {[%clk 0:00:46]}  e3 {[%clk 0:00:23]} 44. Nxe3 {[%clk 0:00:45]}  Ne4 {[%clk 0:00:24]} 45. Rc6 {[%clk 0:00:40]}  Rd7 {[%clk 0:00:24]} 46. b5 {[%clk 0:00:39]}  Rd2+ {[%clk 0:00:24]} 47. Kf1 {[%clk 0:00:36]}  f4 {[%clk 0:00:24]} 48. gxf4+ {[%clk 0:00:31]}  Kxf4 {[%clk 0:00:25]} 49. Ng2+ {[%clk 0:00:27]}  Kf3 {[%clk 0:00:25]} 50. Ne1+ {[%clk 0:00:27]}  Ke3 {[%clk 0:00:24]} 51. a7 {[%clk 0:00:25]}  Rf2+ {[%clk 0:00:19]} 52. Kg1 {[%clk 0:00:25]}  Re2 {[%clk 0:00:19]} 53. a8=Q {[%clk 0:00:18]}  Rxe1+ {[%clk 0:00:19]} 54. Kg2 {[%clk 0:00:18]}  Re2+ {[%clk 0:00:20]} 55. Kg1 {[%clk 0:00:18]}  Re1+ {[%clk 0:00:20]} 56. Kg2 {[%clk 0:00:19]}  Re2+ {[%clk 0:00:21]} 57. Kg1 {[%clk 0:00:19]}  Re1+ {[%clk 0:00:16]} 1/2-1/2

[Event "December 5 Early 2023"]
[Site "https://www.chess.com"]
[Date "2023.12.05"]
[Round "1"]
[White "Verbin, Valentina"]
[Black "Cremisi, Daniel"]
[Result "0-1"]
[Board "200"]
[TimeControl "180+1"]
[WhiteFideId "13905910"]
[BlackFideId "2089882"]
[WhiteElo "2223"]
[BlackElo "2577"]
[WhiteTeam "MDA"]
[BlackTeam "USA"]
[WhiteClock "0:00:00"]
[BlackClock "0:01:47"]

1. Nf3 {[%clk 0:03:00]}  Nf6 {[%clk 0:02:56]} 2. g3 {[%clk 0:03:00]}  d5 {[%clk 0:02:56]} 3. Bg2 {[%clk 0:03:00]}  b6 {[%clk 0:02:56]} 4. c4 {[%clk 0:02:58]}  c6 {[%clk 0:02:52]} 5. cxd5 {[%clk 0:02:54]}  cxd5 {[%clk 0:02:52]} 6. O-O {[%clk 0:02:49]}  g6 {[%clk 0:02:52]} 7. Ne5 {[%clk 0:02:33]}  Bg7 {[%clk 0:02:51]} 8. Qa4+ {[%clk 0:02:26]}  Bd7 {[%clk 0:02:47]} 9. Nxd7 {[%clk 0:02:26]}  Qxd7 {[%clk 0:02:47]} 10. Qb3 {[%clk 0:02:24]}  O-O {[%clk 0:02:45]} 11. Nc3 {[%clk 0:02:22]}  Rd8 {[%clk 0:02:34]} 12. d3 {[%clk 0:02:07]}  Nc6 {[%clk 0:02:33]} 13. Bg5 {[%clk 0:02:06]}  e6 {[%clk 0:02:25]} 14. e4 {[%clk 0:01:23]}  d4 {[%clk 0:02:25]} 15. Ne2 {[%clk 0:01:17]}  h6 {[%clk 0:02:24]} 16. Bd2 {[%clk 0:01:08]}  e5 {[%clk 0:02:23]} 17. Rac1 {[%clk 0:01:06]}  Rac8 {[%clk 0:02:23]} 18. f4 {[%clk 0:01:05]}  Ng4 {[%clk 0:02:21]} 19. f5 {[%clk 0:01:04]}  g5 {[%clk 0:02:12]} 20. Bf3 {[%clk 0:00:28]}  Ne3 {[%clk 0:02:09]} 21. Bxe3 {[%clk 0:00:23]}  dxe3 {[%clk 0:02:09]} 22. Rcd1 {[%clk 0:00:18]}  Bf6 {[%clk 0:02:06]} 23. Nc3 {[%clk 0:00:18]}  Nd4 {[%clk 0:02:05]} 24. Qa3 {[%clk 0:00:18]}  Rxc3 {[%clk 0:01:57]} 25. Qxc3 {[%clk 0:00:17]}  e2 {[%clk 0:01:57]} 26. Rde1 {[%clk 0:00:02]}  exf1=Q+ {[%clk 0:01:54]} 27. Rxf1 {[%clk 0:00:03]}  Rc8 {[%clk 0:01:52]} 28. Qd2 {[%clk 0:00:04]}  Rc2 {[%clk 0:01:52]} 29. Qe1 {[%clk 0:00:03]}  Nxf3+ {[%clk 0:01:48]} 30. Rxf3 {[%clk 0:00:03]}  Qd4+ {[%clk 0:01:48]} 31. Kh1 {[%clk 0:00:03]}  Qc5 {[%clk 0:01:47]} 32. h4 {[%clk 0:00:00]}  Rc1 {[%clk 0:01:47]} 0-1

[Event "December 5 Early 2023"]
[Site "https://www.chess.com"]
[Date "2023.12.05"]
[Round "1"]
[White "Ezat, Mohamed"]
[Black "Almeida Junior, Alvaro Alves de"]
[Result "1-0"]
[Board "201"]
[TimeControl "180+1"]
[WhiteFideId "10600906"]
[BlackFideId "2149974"]
[WhiteElo "2576"]
[BlackElo "2222"]
[WhiteTeam "EGY"]
[BlackTeam "BRA"]
[WhiteClock "0:01:43"]
[BlackClock "0:00:09"]

1. d4 {[%clk 0:03:00]}  Nf6 {[%clk 0:02:59]} 2. c4 {[%clk 0:02:58]}  g6 {[%clk 0:02:59]} 3. Nc3 {[%clk 0:02:58]}  d5 {[%clk 0:03:00]} 4. Bf4 {[%clk 0:02:55]}  Bg7 {[%clk 0:02:59]} 5. Rc1 {[%clk 0:02:54]}  O-O {[%clk 0:02:58]} 6. e3 {[%clk 0:02:55]}  c5 {[%clk 0:02:56]} 7. dxc5 {[%clk 0:02:54]}  Qa5 {[%clk 0:02:54]} 8. cxd5 {[%clk 0:02:54]}  Rd8 {[%clk 0:02:53]} 9. Bc4 {[%clk 0:02:51]}  Ne4 {[%clk 0:02:51]} 10. Ne2 {[%clk 0:02:50]}  Qxc5 {[%clk 0:02:50]} 11. Bb3 {[%clk 0:02:49]}  Nxc3 {[%clk 0:02:35]} 12. Nxc3 {[%clk 0:02:49]}  e6 {[%clk 0:02:30]} 13. O-O {[%clk 0:02:47]}  exd5 {[%clk 0:02:08]} 14. Nxd5 {[%clk 0:02:46]}  Qf8 {[%clk 0:02:04]} 15. Qe2 {[%clk 0:02:40]}  Nc6 {[%clk 0:01:56]} 16. Rfd1 {[%clk 0:02:37]}  Be6 {[%clk 0:01:53]} 17. Nc7 {[%clk 0:02:37]}  Rxd1+ {[%clk 0:01:53]} 18. Rxd1 {[%clk 0:02:36]}  Bxb3 {[%clk 0:01:54]} 19. axb3 {[%clk 0:02:32]}  Rd8 {[%clk 0:01:53]} 20. Nd5 {[%clk 0:02:26]}  Qc5 {[%clk 0:01:43]} 21. e4 {[%clk 0:02:26]}  Nd4 {[%clk 0:01:36]} 22. Qd3 {[%clk 0:02:12]}  Ne6 {[%clk 0:01:30]} 23. Be3 {[%clk 0:02:11]}  Qf8 {[%clk 0:01:20]} 24. g3 {[%clk 0:02:04]}  h5 {[%clk 0:01:06]} 25. Qb5 {[%clk 0:02:02]}  b6 {[%clk 0:01:02]} 26. Qa6 {[%clk 0:01:58]}  Nc5 {[%clk 0:00:57]} 27. Bxc5 {[%clk 0:01:52]}  Qxc5 {[%clk 0:00:58]} 28. Qxa7 {[%clk 0:01:52]}  Bd4 {[%clk 0:00:32]} 29. Kg2 {[%clk 0:01:49]}  Bg7 {[%clk 0:00:11]} 30. Ne7+ {[%clk 0:01:45]}  Kh7 {[%clk 0:00:09]} 31. Rxd8 {[%clk 0:01:43]} 1-0

[Event "December 5 Early 2023"]
[Site "https://www.chess.com"]
[Date "2023.12.05"]
[Round "1"]
[White "Hjartarson, Johann"]
[Black "Rodriguez Avila, Alvaro"]
[Result "1-0"]
[Board "205"]
[TimeControl "180+1"]
[WhiteFideId "2300044"]
[BlackFideId "24570249"]
[WhiteElo "2571"]
[BlackElo "2209"]
[WhiteTeam "ISL"]
[BlackTeam "ESP"]
[WhiteClock "0:00:33"]
[BlackClock "0:00:00"]

1. c4 {[%clk 0:02:56]}  e5 {[%clk 0:02:59]} 2. g3 {[%clk 0:02:56]}  Nc6 {[%clk 0:02:59]} 3. Bg2 {[%clk 0:02:56]}  g6 {[%clk 0:02:59]} 4. Nc3 {[%clk 0:02:55]}  Bg7 {[%clk 0:03:00]} 5. e3 {[%clk 0:02:55]}  d6 {[%clk 0:03:00]} 6. Nge2 {[%clk 0:02:55]}  h5 {[%clk 0:03:00]} 7. h3 {[%clk 0:02:53]}  h4 {[%clk 0:02:56]} 8. g4 {[%clk 0:02:53]}  Nge7 {[%clk 0:02:54]} 9. d4 {[%clk 0:02:51]}  O-O {[%clk 0:02:47]} 10. d5 {[%clk 0:02:50]}  Nb8 {[%clk 0:02:45]} 11. e4 {[%clk 0:02:50]}  f5 {[%clk 0:02:44]} 12. Bg5 {[%clk 0:02:48]}  Bf6 {[%clk 0:02:40]} 13. Bxf6 {[%clk 0:02:46]}  Rxf6 {[%clk 0:02:41]} 14. g5 {[%clk 0:02:41]}  Rf8 {[%clk 0:02:35]} 15. Qd2 {[%clk 0:02:40]}  f4 {[%clk 0:02:26]} 16. Bf3 {[%clk 0:02:37]}  a5 {[%clk 0:02:02]} 17. O-O-O {[%clk 0:02:36]}  Na6 {[%clk 0:02:02]} 18. Rhg1 {[%clk 0:02:23]}  Nc5 {[%clk 0:01:59]} 19. Kb1 {[%clk 0:02:18]}  a4 {[%clk 0:01:55]} 20. Bg4 {[%clk 0:02:17]}  Kg7 {[%clk 0:01:26]} 21. Nc1 {[%clk 0:02:16]}  f3 {[%clk 0:00:39]} 22. Nd3 {[%clk 0:02:08]}  Nxd3 {[%clk 0:00:40]} 23. Qxd3 {[%clk 0:02:07]}  Rf4 {[%clk 0:00:40]} 24. Bxc8 {[%clk 0:02:01]}  Qxc8 {[%clk 0:00:41]} 25. Rh1 {[%clk 0:02:00]}  Qd7 {[%clk 0:00:37]} 26. Rc1 {[%clk 0:01:53]}  b6 {[%clk 0:00:35]} 27. Nd1 {[%clk 0:01:52]}  Ra5 {[%clk 0:00:26]} 28. Ne3 {[%clk 0:01:51]}  Rc5 {[%clk 0:00:26]} 29. Ng4 {[%clk 0:01:43]}  Qd8 {[%clk 0:00:20]} 30. Rhg1 {[%clk 0:01:39]}  Ng8 {[%clk 0:00:21]} 31. Ne3 {[%clk 0:01:28]}  Qd7 {[%clk 0:00:20]} 32. Rg4 {[%clk 0:01:28]}  Rxg4 {[%clk 0:00:18]} 33. Nxg4 {[%clk 0:01:27]}  Qe7 {[%clk 0:00:17]} 34. Qe3 {[%clk 0:01:18]}  b5 {[%clk 0:00:14]} 35. cxb5 {[%clk 0:01:17]}  Rxc1+ {[%clk 0:00:14]} 36. Qxc1 {[%clk 0:01:15]}  Qd7 {[%clk 0:00:13]} 37. Qc6 {[%clk 0:01:10]}  Qe7 {[%clk 0:00:12]} 38. b6 {[%clk 0:01:07]}  cxb6 {[%clk 0:00:11]} 39. Qxb6 {[%clk 0:01:07]}  Qxg5 {[%clk 0:00:10]} 40. Qxd6 {[%clk 0:01:06]}  Qd2 {[%clk 0:00:10]} 41. Qxe5+ {[%clk 0:01:05]}  Kh7 {[%clk 0:00:09]} 42. Qc7+ {[%clk 0:00:59]}  Kh8 {[%clk 0:00:05]} 43. Qc3+ {[%clk 0:00:59]}  Qxc3 {[%clk 0:00:05]} 44. bxc3 {[%clk 0:00:59]}  Kg7 {[%clk 0:00:06]} 45. e5 {[%clk 0:00:55]}  Kf7 {[%clk 0:00:06]} 46. c4 {[%clk 0:00:53]}  Ke7 {[%clk 0:00:06]} 47. Kc2 {[%clk 0:00:53]}  Kd7 {[%clk 0:00:07]} 48. Kc3 {[%clk 0:00:53]}  Ne7 {[%clk 0:00:07]} 49. Kb4 {[%clk 0:00:49]}  Nf5 {[%clk 0:00:08]} 50. c5 {[%clk 0:00:48]}  Ng3 {[%clk 0:00:06]} 51. e6+ {[%clk 0:00:44]}  Ke7 {[%clk 0:00:06]} 52. Ne5 {[%clk 0:00:41]}  Ne4 {[%clk 0:00:04]} 53. Nxf3 {[%clk 0:00:41]}  g5 {[%clk 0:00:03]} 54. Nd4 {[%clk 0:00:35]}  g4 {[%clk 0:00:00]} 55. d6+ {[%clk 0:00:33]} 1-0

[Event "December 5 Early 2023"]
[Site "https://www.chess.com"]
[Date "2023.12.05"]
[Round "1"]
[White "Sharapov, Evgeny"]
[Black "Mishra, Manoj"]
[Result "0-1"]
[Board "207"]
[TimeControl "180+1"]
[WhiteFideId "14103133"]
[BlackFideId "5006007"]
[WhiteElo "2568"]
[BlackElo "2207"]
[WhiteTeam "UKR"]
[BlackTeam "IND"]
[WhiteClock "0:01:00"]
[BlackClock "0:01:04"]

1. c4 {[%clk 0:03:00]}  c6 {[%clk 0:02:50]} 2. Nc3 {[%clk 0:02:59]}  d5 {[%clk 0:02:50]} 3. cxd5 {[%clk 0:02:59]}  cxd5 {[%clk 0:02:51]} 4. d4 {[%clk 0:02:59]}  Nf6 {[%clk 0:02:48]} 5. Nf3 {[%clk 0:02:59]}  a6 {[%clk 0:02:48]} 6. Bf4 {[%clk 0:02:58]}  Nc6 {[%clk 0:02:44]} 7. Rc1 {[%clk 0:02:58]}  Bf5 {[%clk 0:02:42]} 8. e3 {[%clk 0:02:56]}  e6 {[%clk 0:02:40]} 9. Qb3 {[%clk 0:02:55]}  Ra7 {[%clk 0:02:20]} 10. Be2 {[%clk 0:02:53]}  Bd6 {[%clk 0:02:16]} 11. Bxd6 {[%clk 0:02:52]}  Qxd6 {[%clk 0:02:16]} 12. O-O {[%clk 0:02:52]}  O-O {[%clk 0:02:14]} 13. Na4 {[%clk 0:02:52]}  b5 {[%clk 0:02:07]} 14. Nc5 {[%clk 0:02:50]}  Na5 {[%clk 0:02:07]} 15. Qb4 {[%clk 0:02:47]}  Nc4 {[%clk 0:02:04]} 16. b3 {[%clk 0:02:39]}  a5 {[%clk 0:01:47]} 17. Qxb5 {[%clk 0:02:22]}  Rb8 {[%clk 0:01:45]} 18. Qa4 {[%clk 0:02:19]}  Rb4 {[%clk 0:01:44]} 19. bxc4 {[%clk 0:02:07]}  Rxa4 {[%clk 0:01:43]} 20. Nxa4 {[%clk 0:02:07]}  dxc4 {[%clk 0:01:42]} 21. Rxc4 {[%clk 0:02:06]}  h6 {[%clk 0:01:40]} 22. Rfc1 {[%clk 0:02:05]}  Qa3 {[%clk 0:01:38]} 23. Ne5 {[%clk 0:01:55]}  Qxa2 {[%clk 0:01:35]} 24. Bf3 {[%clk 0:01:52]}  Be4 {[%clk 0:01:17]} 25. Nc5 {[%clk 0:01:37]}  Bxf3 {[%clk 0:01:14]} 26. gxf3 {[%clk 0:01:37]}  Nd5 {[%clk 0:01:11]} 27. Nc6 {[%clk 0:01:31]}  Rc7 {[%clk 0:01:09]} 28. R1c2 {[%clk 0:01:09]}  Qb1+ {[%clk 0:01:05]} 29. Rc1 {[%clk 0:01:09]}  Qg6+ {[%clk 0:01:05]} 30. Kh1 {[%clk 0:01:00]}  Rxc6 {[%clk 0:01:04]} 0-1

[Event "December 5 Early 2023"]
[Site "https://www.chess.com"]
[Date "2023.12.05"]
[Round "1"]
[White "Zoete, Roelant"]
[Black "Viana Da Costa, Fernando"]
[Result "0-1"]
[Board "208"]
[TimeControl "180+1"]
[WhiteFideId "40103269"]
[BlackFideId "2111900"]
[WhiteElo "2205"]
[BlackElo "2568"]
[WhiteTeam "NED"]
[BlackTeam "BRA"]
[WhiteClock "0:00:43"]
[BlackClock "0:01:23"]

1. e4 {[%clk 0:03:00]}  c5 {[%clk 0:03:00]} 2. Nf3 {[%clk 0:02:59]}  Nc6 {[%clk 0:03:00]} 3. d4 {[%clk 0:02:59]}  cxd4 {[%clk 0:03:01]} 4. Nxd4 {[%clk 0:03:00]}  g6 {[%clk 0:03:01]} 5. c4 {[%clk 0:02:58]}  Nf6 {[%clk 0:03:01]} 6. Nc3 {[%clk 0:02:58]}  d6 {[%clk 0:03:02]} 7. Be3 {[%clk 0:02:58]}  Ng4 {[%clk 0:03:02]} 8. Nxc6 {[%clk 0:02:39]}  bxc6 {[%clk 0:03:00]} 9. Bd4 {[%clk 0:02:40]}  e5 {[%clk 0:03:00]} 10. Be3 {[%clk 0:02:38]}  Nxe3 {[%clk 0:03:00]} 11. fxe3 {[%clk 0:02:39]}  Bh6 {[%clk 0:02:59]} 12. Qf3 {[%clk 0:02:35]}  O-O {[%clk 0:02:54]} 13. Be2 {[%clk 0:02:35]}  Be6 {[%clk 0:02:53]} 14. O-O {[%clk 0:02:34]}  Qg5 {[%clk 0:02:53]} 15. Rad1 {[%clk 0:02:09]}  Qxe3+ {[%clk 0:02:52]} 16. Qxe3 {[%clk 0:02:10]}  Bxe3+ {[%clk 0:02:53]} 17. Kh1 {[%clk 0:02:11]}  Rfd8 {[%clk 0:02:52]} 18. Rd3 {[%clk 0:02:10]}  Bd4 {[%clk 0:02:45]} 19. Bf3 {[%clk 0:02:08]}  Bxc4 {[%clk 0:02:43]} 20. Rfd1 {[%clk 0:02:02]}  Bxd3 {[%clk 0:02:42]} 21. Rxd3 {[%clk 0:02:03]}  Rab8 {[%clk 0:02:40]} 22. b3 {[%clk 0:02:03]}  Kg7 {[%clk 0:02:38]} 23. Ne2 {[%clk 0:02:02]}  c5 {[%clk 0:02:35]} 24. g3 {[%clk 0:02:01]}  a5 {[%clk 0:02:34]} 25. Kg2 {[%clk 0:02:00]}  Rb4 {[%clk 0:02:30]} 26. Nxd4 {[%clk 0:01:56]}  exd4 {[%clk 0:02:27]} 27. Bd1 {[%clk 0:01:55]}  d5 {[%clk 0:02:24]} 28. Kf3 {[%clk 0:01:51]}  dxe4+ {[%clk 0:02:18]} 29. Kxe4 {[%clk 0:01:52]}  Kf6 {[%clk 0:02:16]} 30. Rf3+ {[%clk 0:01:35]}  Ke6 {[%clk 0:02:15]} 31. Kd3 {[%clk 0:01:35]}  a4 {[%clk 0:02:05]} 32. bxa4 {[%clk 0:01:23]}  c4+ {[%clk 0:02:01]} 33. Kc2 {[%clk 0:01:18]}  f5 {[%clk 0:01:49]} 34. Rf2 {[%clk 0:00:57]}  Rxa4 {[%clk 0:01:43]} 35. Kb2 {[%clk 0:00:54]}  Rb8+ {[%clk 0:01:36]} 36. Ka1 {[%clk 0:00:43]}  Rab4 {[%clk 0:01:34]} 37. Bc2 {[%clk 0:00:42]}  d3 {[%clk 0:01:28]} 38. Bxd3 {[%clk 0:00:41]}  cxd3 {[%clk 0:01:26]} 39. Rf1 {[%clk 0:00:42]}  Kd5 {[%clk 0:01:25]} 40. h4 {[%clk 0:00:40]}  d2 {[%clk 0:01:23]} 41. h5 {[%clk 0:00:39]}  Rb1+ {[%clk 0:01:21]} 42. Rxb1 {[%clk 0:00:37]}  Rxb1+ {[%clk 0:01:22]} 43. Kxb1 {[%clk 0:00:38]}  d1=Q+ {[%clk 0:01:23]} 44. Kb2 {[%clk 0:00:39]}  Qf3 {[%clk 0:01:21]} 45. g4 {[%clk 0:00:40]}  Qxg4 {[%clk 0:01:21]} 46. hxg6 {[%clk 0:00:40]}  hxg6 {[%clk 0:01:22]} 47. a3 {[%clk 0:00:40]}  Qc4 {[%clk 0:01:23]} 48. a4 {[%clk 0:00:40]}  Qxa4 {[%clk 0:01:22]} 49. Kc3 {[%clk 0:00:41]}  Qc4+ {[%clk 0:01:22]} 50. Kb2 {[%clk 0:00:42]}  Qd3 {[%clk 0:01:22]} 51. Ka2 {[%clk 0:00:42]}  Qc3 {[%clk 0:01:22]} 52. Kb1 {[%clk 0:00:43]}  Qd2 {[%clk 0:01:22]} 53. Ka1 {[%clk 0:00:44]}  Kc4 {[%clk 0:01:23]} 54. Kb1 {[%clk 0:00:43]}  Kb3 {[%clk 0:01:23]} 0-1